[Event "Asian Nation Cup Open 2018"]
[Site "Hamedan"]
[Date "2018.07.28"]
[Round "1"]
[White "Gupta, Abhijeet"]
[Black "Abdisalimov, Abdimalik"]
[Result "1/2-1/2"]
[ECO "E42"]
[WhiteElo "2614"]
[BlackElo "2331"]
[Annotator "ChessBase"]
[PlyCount "40"]
[EventDate "2018.07.27"]
[EventType "swiss"]
[EventCountry "IRI"]
[SourceTitle "playchess.com"]
[Source "ChessBase"]
[SourceQuality "1"]
[WhiteTeam "IND"]
[BlackTeam "UZB"]
[TimeControl "40/5400+30:1800+30"]

1. d4 {[%emt 0:00:00]} Nf6 {[%emt 0:00:26]} 2. c4 {[%emt 0:00:00]} e6 {[%emt 0:00:09]} 3. Nc3 {[%emt 0:00:11]} Bb4 {[%emt 0:00:09]} 4. e3 c5 {[%emt 0:01:25]} 5. Nge2 {[%emt 0:00:39]} cxd4 {[%emt 0:00:16]} 6. exd4 {[%emt 0:00:08]} O-O {[%emt 0:00:05]} 7. a3 {[%emt 0:00:26]} Be7 {[%emt 0:00:10]} 8. Nf4 {[%emt 0:00:38]} d5 {[%emt 0:00:18]} 9. cxd5 {[%emt 0:00:10]} Nxd5 {[%emt 0:00:07]} 10. Ncxd5 {[%emt 0:00:07]} exd5 {[%emt 0:00:06]} 11. Bd3 {[%emt 0:00:05]} Nc6 {[%emt 0:09:40]} 12. O-O {[%emt 0:00:32]} Bg5 {[%emt 0:10:48]} 13. Be3 {[%emt 0:05:19]} Bxf4 {[%emt 0:12:37]} 14. Bxf4 {[%emt 0:00:07]} Nxd4 {[%emt 0:02:03]} 15. Bxh7+ {[%emt 0:00:51]} Kxh7 {[%emt 0:00:25]} 16. Qxd4 {[%emt 0:00:04]} Bf5 {[%emt 0:01:50]} 17. Rfe1 {[%emt 0:01:24]} f6 {[%emt 0:08:01]} 18. Rad1 {[%emt 0:02:34]} Re8 {[%emt 0:02:24]} 19. Be3 {[%emt 0:02:37]} a6 20. f3 {[%emt 0:07:39]} Rc8 {[%emt 0:04:51]} 1/2-1/2

[Event "Asian Nation Cup Open 2018"]
[Site "Hamedan"]
[Date "2018.07.28"]
[Round "1"]
[White "Wen, Yang"]
[Black "Gholami, Aryan"]
[Result "1/2-1/2"]
[ECO "B44"]
[WhiteElo "2599"]
[BlackElo "2492"]
[Annotator "ChessBase"]
[PlyCount "81"]
[EventDate "2018.07.27"]
[EventType "swiss"]
[EventCountry "IRI"]
[SourceTitle "playchess.com"]
[Source "ChessBase"]
[SourceQuality "1"]
[WhiteTeam "China"]
[BlackTeam "Iran"]
[WhiteTeamCountry "CHN"]
[BlackTeamCountry "IRI"]
[TimeControl "40/5400+30:1800+30"]

1. e4 {[%emt 0:00:00]} c5 {[%emt 0:00:08]} 2. Nf3 {[%emt 0:00:00]} e6 {[%emt 0:00:09]} 3. d4 {[%emt 0:00:00]} cxd4 {[%emt 0:00:25]} 4. Nxd4 {[%emt 0:00:00]} Nc6 {[%emt 0:00:07]} 5. g3 {[%emt 0:00:37]} Bc5 6. Nb3 {[%emt 0:01:40]} Be7 {[%emt 0:00:58]} 7. Bg2 {[%emt 0:02:55]} Nf6 {[%emt 0:01:35]} 8. O-O {[%emt 0:03:27]} O-O {[%emt 0:00:16]} 9. c4 {[%emt 0:05:08]} d6 {[%emt 0:00:06]} 10. Bf4 {[%emt 0:00:19]} a5 {[%emt 0:06:14]} 11. Nc3 {[%emt 0:06:52]} a4 {[%emt 0:01:59]} 12. Nc1 {[%emt 0:00:08]} e5 {[%emt 0:07:38]} 13. Bd2 {[%emt 0:01:54]} Bg4 {[%emt 0:07:40]} 14. N1e2 {[%emt 0:03:23]} Nd4 {[%emt 0:02:25]} 15. Be3 {[%emt 0:04:29]} Nxe2+ {[%emt 0:02:56]} 16. Nxe2 {[%emt 0:00:07]} Qa5 17. Qd3 {[%emt 0:08:47]} Rfc8 {[%emt 0:05:01]} 18. Rab1 {[%emt 0:15:00]} a3 19. b3 b5 20. cxb5 Bd7 21. Rfc1 Bxb5 22. Qd1 Ng4 23. Bd2 Qb6 24. Qe1 Bd3 25. Ra1 d5 26. h3 Nf6 27. exd5 Be4 28. Be3 Qb7 29. Bxe4 Nxe4 30. Qd1 Rd8 31. Nc3 Nxc3 32. Rxc3 Rxd5 33. Qc2 Rad8 34. Rc1 h6 35. h4 R5d7 36. Kh2 Bb4 37. Rc7 Rxc7 38. Qxc7 Qxc7 39. Rxc7 f5 40. Kg2 Bd6 41. Rc4 1/2-1/2

[Event "Asian Nation Cup Open 2018"]
[Site "Hamedan"]
[Date "2018.07.28"]
[Round "1"]
[White "Bai, Jinshi"]
[Black "Javanbakht, Nima"]
[Result "1-0"]
[ECO "D31"]
[WhiteElo "2588"]
[BlackElo "2439"]
[Annotator "ChessBase"]
[PlyCount "63"]
[EventDate "2018.07.27"]
[EventType "swiss"]
[EventCountry "IRI"]
[SourceTitle "playchess.com"]
[Source "ChessBase"]
[SourceQuality "1"]
[WhiteTeam "China"]
[BlackTeam "Iran"]
[WhiteTeamCountry "CHN"]
[BlackTeamCountry "IRI"]
[TimeControl "40/5400+30:1800+30"]

1. d4 {[%emt 0:00:00]} d5 {[%emt 0:00:23]} 2. c4 {[%emt 0:00:00]} e6 3. Nc3 {[%emt 0:03:00]} c6 {[%emt 0:00:20]} 4. e4 {[%emt 0:00:19]} dxe4 {[%emt 0:00:27]} 5. Nxe4 {[%emt 0:00:07]} Bb4+ {[%emt 0:00:05]} 6. Nc3 {[%emt 0:00:27]} c5 {[%emt 0:02:25]} 7. a3 {[%emt 0:02:14]} Bxc3+ {[%emt 0:06:35]} 8. bxc3 {[%emt 0:00:06]} Nf6 {[%emt 0:00:02]} 9. Nf3 {[%emt 0:05:07]} O-O {[%emt 0:06:10]} 10. Bd3 {[%emt 0:07:17]} Nbd7 {[%emt 0:10:05]} 11. O-O {[%emt 0:07:08]} Qc7 12. Re1 {[%emt 0:27:52]} b6 {[%emt 0:13:56]} 13. Ne5 {[%emt 0:02:04]} Bb7 {[%emt 0:01:42]} 14. Bf4 Nxe5 15. dxe5 Qc6 16. f3 Nd7 17. Bc2 Rad8 18. Qd3 f5 19. exf6 Nxf6 20. Qe2 Rde8 21. Rad1 Nh5 22. Be5 Nf4 23. Qe3 Ng6 24. Rd6 Qc7 25. Red1 Nxe5 26. Qxe5 Qf7 27. Rd7 Re7 28. Qc7 Rxd7 29. Rxd7 Qf6 30. Qxb7 Qxc3 31. Qe4 g6 32. Qxe6+ 1-0

[Event "Asian Nation Cup Open 2018"]
[Site "Hamedan"]
[Date "2018.07.28"]
[Round "1"]
[White "Idani, Pouya"]
[Black "Islam, Kh  Aminul"]
[Result "1-0"]
[ECO "C78"]
[WhiteElo "2583"]
[BlackElo "2293"]
[Annotator "ChessBase"]
[PlyCount "47"]
[EventDate "2018.07.27"]
[EventType "swiss"]
[EventCountry "IRI"]
[SourceTitle "playchess.com"]
[Source "ChessBase"]
[SourceQuality "1"]
[WhiteTeam "Iran"]
[BlackTeam "Bangladesh"]
[WhiteTeamCountry "IRI"]
[BlackTeamCountry "BAN"]
[TimeControl "40/5400+30:1800+30"]

1. e4 {[%emt 0:00:00]} e5 {[%emt 0:00:11]} 2. Nf3 {[%emt 0:00:00]} Nc6 {[%emt 0:00:10]} 3. Bb5 {[%emt 0:00:00]} a6 {[%emt 0:00:10]} 4. Ba4 {[%emt 0:00:00]} Nf6 {[%emt 0:00:06]} 5. O-O {[%emt 0:00:00]} b5 {[%emt 0:00:08]} 6. Bb3 {[%emt 0:00:00]} Bc5 {[%emt 0:00:07]} 7. a4 {[%emt 0:00:09]} Rb8 {[%emt 0:00:02]} 8. c3 {[%emt 0:00:04]} d6 {[%emt 0:00:10]} 9. d4 {[%emt 0:00:04]} Bb6 {[%emt 0:00:03]} 10. a5 {[%emt 0:00:03]} Ba7 11. h3 Bb7 {[%emt 0:01:37]} 12. Be3 {[%emt 0:06:14]} Ra8 {[%emt 0:00:09]} 13. dxe5 {[%emt 0:04:28]} Bxe3 {[%emt 0:03:21]} 14. exf6 {[%emt 0:00:16]} Bh6 {[%emt 0:00:24]} 15. fxg7 {[%emt 0:01:32]} Bxg7 {[%emt 0:01:59]} 16. Bd5 {[%emt 0:01:55]} O-O {[%emt 0:03:10]} 17. Nbd2 {[%emt 0:04:40]} Rb8 {[%emt 0:00:41]} 18. Re1 {[%emt 0:01:18]} Kh8 {[%emt 0:01:08]} 19. Nb3 {[%emt 0:02:45]} Qf6 {[%emt 0:05:42]} 20. Nbd4 {[%emt 0:02:41]} Ne7 {[%emt 0:02:43]} 21. Bxb7 {[%emt 0:01:30]} Rxb7 {[%emt 0:00:01]} 22. e5 {[%emt 0:01:12]} dxe5 {[%emt 0:03:18]} 23. Nxe5 {[%emt 0:00:24]} Rd8 {[%emt 0:11:03]} 24. Ng4 {[%emt 0:00:32]} 1-0

[Event "Asian Nation Cup Open 2018"]
[Site "Hamedan"]
[Date "2018.07.28"]
[Round "1"]
[White "Firouzja, Alireza"]
[Black "Ahmed, Sk  Nasir"]
[Result "1-0"]
[ECO "B45"]
[WhiteElo "2561"]
[BlackElo "2257"]
[Annotator "ChessBase"]
[PlyCount "61"]
[EventDate "2018.07.27"]
[EventType "swiss"]
[EventCountry "IRI"]
[SourceTitle "playchess.com"]
[Source "ChessBase"]
[SourceQuality "1"]
[WhiteTeam "Iran"]
[BlackTeam "Bangladesh"]
[WhiteTeamCountry "IRI"]
[BlackTeamCountry "BAN"]
[TimeControl "40/5400+30:1800+30"]

1. e4 {[%emt 0:00:00]} c5 {[%emt 0:00:13]} 2. Nf3 {[%emt 0:00:00]} e6 {[%emt 0:00:06]} 3. d4 {[%emt 0:00:00]} cxd4 {[%emt 0:00:06]} 4. Nxd4 {[%emt 0:00:03]} Nc6 {[%emt 0:00:09]} 5. Nc3 {[%emt 0:00:19]} d6 {[%emt 0:00:08]} 6. Be3 {[%emt 0:00:07]} Nf6 {[%emt 0:00:07]} 7. Qd2 {[%emt 0:00:05]} Be7 {[%emt 0:00:12]} 8. f3 {[%emt 0:00:00]} O-O {[%emt 0:00:30]} 9. O-O-O a6 10. g4 {[%emt 0:00:20]} Nxd4 {[%emt 0:00:00]} 11. Bxd4 {[%emt 0:00:09]} b5 {[%emt 0:00:03]} 12. g5 {[%emt 0:00:10]} Nd7 {[%emt 0:00:07]} 13. h4 {[%emt 0:00:08]} b4 {[%emt 0:00:14]} 14. Na4 {[%emt 0:01:01]} Rb8 {[%emt 0:03:56]} 15. b3 {[%emt 0:08:18]} Qc7 {[%emt 0:09:48]} 16. h5 {[%emt 0:03:46]} Nc5 17. Nb2 f5 {[%emt 0:49:44]} 18. gxf6 {[%emt 0:14:16]} Bxf6 {[%emt 0:00:03]} 19. h6 {[%emt 0:04:26]} g6 {[%emt 0:02:28]} 20. Nc4 {[%emt 0:04:00]} Be5 {[%emt 0:03:10]} 21. Nxe5 {[%emt 0:00:56]} dxe5 {[%emt 0:00:05]} 22. Bb2 {[%emt 0:02:37]} Bb7 23. Qg5 {[%emt 0:03:25]} Rbc8 {[%emt 0:03:21]} 24. Bc4 {[%emt 0:00:19]} Rxf3 {[%emt 0:02:38]} 25. Bxe5 {[%emt 0:00:21]} Qc6 {[%emt 0:00:34]} 26. Rhf1 {[%emt 0:00:51]} Qxe4 {[%emt 0:08:37]} 27. Rd8+ {[%emt 0:01:44]} Kf7 {[%emt 0:03:14]} 28. Rxf3+ {[%emt 0:00:15]} Qxf3 {[%emt 0:00:11]} 29. Bxe6+ {[%emt 0:00:18]} Nxe6 {[%emt 0:01:55]} 30. Rd7+ {[%emt 0:00:10]} Kg8 {[%emt 0:00:14]} 31. Qxg6+ {[%emt 0:00:06]} 1-0

[Event "Asian Nation Cup Open 2018"]
[Site "Hamedan"]
[Date "2018.07.28"]
[Round "1"]
[White "Hossain, Enamul"]
[Black "Maghsoodloo, Parham"]
[Result "0-1"]
[ECO "B67"]
[WhiteElo "2473"]
[BlackElo "2636"]
[Annotator "RC"]
[PlyCount "98"]
[EventDate "2018.07.27"]
[EventType "swiss"]
[EventCountry "IRI"]
[SourceTitle "playchess.com"]
[Source "ChessBase"]
[SourceQuality "1"]
[WhiteTeam "Bangladesh"]
[BlackTeam "Iran"]
[WhiteTeamCountry "BAN"]
[BlackTeamCountry "IRI"]
[TimeControl "40/5400+30:1800+30"]

1. e4 {[%emt 0:00:00]} c5 {[%emt 0:00:07]} 2. Nf3 {[%emt 0:00:00]} Nc6 {[%emt 0:00:14]} 3. d4 {[%emt 0:00:22]} cxd4 {[%emt 0:00:07]} 4. Nxd4 {[%emt 0:00:04]} Nf6 {[%emt 0:00:05]} 5. Nc3 {[%emt 0:00:08]} d6 {[%emt 0:00:04]} 6. Bg5 {[%emt 0:00:26]} e6 {[%emt 0:00:00]} 7. Qd2 {[%emt 0:00:30]} a6 {[%emt 0:00:00]} 8. O-O-O {[%emt 0:00:07]} Bd7 {[%emt 0:00:18]} 9. f3 {[%emt 0:00:55]} Be7 {[%emt 0:06:13]} 10. h4 {[%emt 0:02:19]} h6 {[%emt 0:00:44]} 11. Be3 {[%emt 0:00:10]} h5 {[%emt 0:00:06]} 12. Kb1 {[%emt 0:00:27]} b5 {[%emt 0:03:44]} 13. Nxc6 {[%emt 0:01:40]} Bxc6 {[%emt 0:00:10]} 14. Ne2 {[%emt 0:02:28]} Qc7 {[%emt 0:03:50]} 15. Nd4 {[%emt 0:00:43]} Bd7 {[%emt 0:00:09]} 16. Bg5 {[%emt 0:04:43]} Rb8 {[%emt 0:10:04]} 17. Nb3 {[%emt 0:07:30]} e5 {[%emt 0:04:08]} 18. g3 {[%emt 0:03:24]} Be6 {[%emt 0:09:30]} 19. Bh3 {[%emt 0:03:19]} Rd8 {[%emt 0:02:35]} 20. Bxe6 {[%emt 0:18:44]} fxe6 {[%emt 0:00:15]} 21. Rhe1 {[%emt 0:04:24]} O-O {[%emt 0:00:37]} 22. Qe2 {[%emt 0:08:22]} Rc8 {[%emt 0:07:04]} 23. Rd3 {[%emt 0:04:05]} a5 {[%emt 0:10:35]} 24. Rc3 {[%emt 0:05:32]} Qb6 {[%emt 0:00:41]} 25. Rxc8 {[%emt 0:01:07]} Rxc8 {[%emt 0:00:06]} 26. Nc1 {[%emt 0:00:46]} b4 {[%emt 0:03:56]} 27. f4 {[%emt 0:01:55]} exf4 {[%emt 0:00:50]} 28. gxf4 {[%emt 0:00:34]} Qc7 {[%emt 0:01:06]} 29. Nd3 {[%emt 0:11:02]} Ng4 {[%emt 0:02:37]} 30. Rc1 {[%emt 0:05:39]} Bxg5 {[%emt 0:05:50]} 31. hxg5 {[%emt 0:00:25]} Qf7 {[%emt 0:00:45]} 32. Rf1 {[%emt 0:02:15]} g6 {[%emt 0:00:27]} 33. b3 Rf8 {[%emt 0:04:23]} 34. Rd1 {[%emt 0:03:26]} Qe7 {[%emt 0:02:17]} 35. Rf1 {[%emt 0:03:33]} e5 {[%emt 0:01:13]} 36. fxe5 {[%emt 0:00:57]} Rxf1+ {[%emt 0:00:16]} 37. Qxf1 {[%emt 0:00:01]} dxe5 {[%emt 0:00:01]} 38. Qc1 {[%emt 0:03:01]} Kg7 {[%emt 0:03:24]} 39. Qd2 {[%emt 0:02:47]} Qd8 {[%emt 0:00:44]} 40. Qc1 {[%emt 0:01:18]} h4 {[%emt 0:40:05]} 41. Qg1 {[%emt 0:16:03]} Qxg5 {[%emt 0:00:30]} 42. Nc5 {[%emt 0:00:30]} Kf7 {[%emt 0:00:30]} 43. Qf1+ {[%emt 0:00:30]} Qf6 {[%emt 0:00:30]} 44. Qe2 Nh6 {[%emt 0:00:00]} 45. Qd2 {[%emt 0:09:10]} Kg7 {[%emt 0:00:00]} 46. Qd7+ {[%emt 0:00:24]} Nf7 {[%emt 0:00:00]} 47. Ne6+ {[%emt 0:01:01]} Kh6 {[%emt 0:00:00]} 48. Nf8 {[%emt 0:01:47]} Ng5 {[%emt 0:00:00]} 49. Qe8 {[%emt 0:01:13]} Qf7 {[%emt 0:00:00]} 0-1

[Event "Asian Nation Cup Open 2018"]
[Site "Hamedan"]
[Date "2018.07.28"]
[Round "1"]
[White "Makhnev, Denis"]
[Black "Abdulwahhab, Ahmed Abdulsattar A"]
[Result "1-0"]
[ECO "A48"]
[WhiteElo "2437"]
[BlackElo "2290"]
[Annotator "NA"]
[PlyCount "94"]
[EventDate "2018.07.27"]
[EventType "swiss"]
[EventCountry "IRI"]
[SourceTitle "playchess.com"]
[Source "ChessBase"]
[SourceQuality "1"]
[WhiteTeam "Kazakhstan"]
[BlackTeam "Iraq"]
[WhiteTeamCountry "KAZ"]
[BlackTeamCountry "IRQ"]
[TimeControl "40/5400+30:1800+30"]

1. d4 {[%emt 0:00:00]} Nf6 {[%emt 0:00:25]} 2. Nf3 {[%emt 0:00:00]} g6 {[%emt 0:00:32]} 3. Bf4 {[%emt 0:00:00]} Bg7 {[%emt 0:00:18]} 4. e3 O-O {[%emt 0:00:58]} 5. Be2 {[%emt 0:00:25]} d6 {[%emt 0:00:31]} 6. h3 {[%emt 0:00:08]} c5 {[%emt 0:00:21]} 7. c3 {[%emt 0:00:21]} b6 {[%emt 0:02:33]} 8. O-O {[%emt 0:00:35]} Bb7 {[%emt 0:00:13]} 9. a4 {[%emt 0:00:14]} a6 {[%emt 0:00:15]} 10. Nbd2 {[%emt 0:00:06]} Nbd7 {[%emt 0:00:31]} 11. Bd3 {[%emt 0:00:35]} Rc8 {[%emt 0:04:48]} 12. Qe2 {[%emt 0:00:29]} Ra8 {[%emt 0:06:41]} 13. Bh2 {[%emt 0:15:53]} Re8 {[%emt 0:03:23]} 14. e4 {[%emt 0:00:40]} cxd4 {[%emt 0:01:28]} 15. cxd4 {[%emt 0:00:29]} e5 {[%emt 0:01:28]} 16. dxe5 {[%emt 0:13:58]} dxe5 17. b4 Nh5 {[%emt 0:04:50]} 18. Qe3 {[%emt 0:14:22]} Nf4 {[%emt 0:00:25]} 19. Bc4 {[%emt 0:00:12]} Qe7 {[%emt 0:06:02]} 20. Rab1 {[%emt 0:02:30]} Bh6 {[%emt 0:05:06]} 21. Kh1 {[%emt 0:00:50]} Kg7 {[%emt 0:01:58]} 22. Qb3 {[%emt 0:01:37]} f6 {[%emt 0:03:35]} 23. Rfd1 {[%emt 0:08:01]} Nf8 {[%emt 0:04:16]} 24. Bxf4 Bxf4 {[%emt 0:01:02]} 25. Bd5 {[%emt 0:02:44]} Bxd2 {[%emt 0:05:31]} 26. Rxd2 {[%emt 0:00:43]} Rad8 {[%emt 0:02:35]} 27. Rbd1 {[%emt 0:10:39]} Bxd5 {[%emt 0:02:35]} 28. exd5 {[%emt 0:02:45]} Qd7 {[%emt 0:02:08]} 29. Ne1 {[%emt 0:02:53]} Rc8 {[%emt 0:01:52]} 30. Nc2 {[%emt 0:01:17]} b5 {[%emt 0:01:31]} 31. axb5 {[%emt 0:00:56]} axb5 {[%emt 0:00:48]} 32. Na3 {[%emt 0:01:46]} Ra8 {[%emt 0:01:26]} 33. Qd3 {[%emt 0:05:26]} Reb8 {[%emt 0:02:18]} 34. Nc2 Ra4 {[%emt 0:03:42]} 35. f4 {[%emt 0:11:53]} exf4 {[%emt 0:02:47]} 36. Qf3 {[%emt 0:00:04]} g5 {[%emt 0:01:29]} 37. d6 {[%emt 0:00:52]} Re8 {[%emt 0:01:09]} 38. Qc3 {[%emt 0:01:55]} Raa8 {[%emt 0:03:19]} 39. Nd4 {[%emt 0:00:27]} Rac8 {[%emt 0:00:58]} 40. Qf3 {[%emt 0:02:28]} Re5 {[%emt 0:32:58]} 41. Qd3 {[%emt 0:31:01]} Kf7 {[%emt 0:02:50]} 42. Nb3 {[%emt 0:00:11]} Kg7 {[%emt 0:08:43]} 43. Nc5 {[%emt 0:00:07]} Qc6 {[%emt 0:00:17]} 44. Re2 {[%emt 0:01:01]} Rd8 {[%emt 0:01:00]} 45. Rxe5 {[%emt 0:00:18]} fxe5 {[%emt 0:00:06]} 46. Qf5 {[%emt 0:00:02]} Qe8 {[%emt 0:03:28]} 47. Qxg5+ {[%emt 0:00:26]} Kh8 {[%emt 0:00:40]} 1-0

[Event "Asian Nation Cup Open 2018"]
[Site "Hamedan"]
[Date "2018.07.28"]
[Round "1"]
[White "Gholami Orimi, Mahdi"]
[Black "Xu, Xiangyu"]
[Result "0-1"]
[ECO "A40"]
[WhiteElo "2334"]
[BlackElo "2585"]
[Annotator "ChessBase"]
[PlyCount "70"]
[EventDate "2018.07.27"]
[EventType "swiss"]
[EventCountry "IRI"]
[SourceTitle "playchess.com"]
[Source "ChessBase"]
[SourceQuality "1"]
[WhiteTeam "Iran"]
[BlackTeam "China"]
[WhiteTeamCountry "IRI"]
[BlackTeamCountry "CHN"]
[TimeControl "40/5400+30:1800+30"]

1. d4 {[%emt 0:00:00]} g6 {[%emt 0:00:06]} 2. Nf3 {[%emt 0:00:03]} Bg7 {[%emt 0:00:07]} 3. g3 {[%emt 0:00:14]} f5 {[%emt 0:00:07]} 4. Bg2 {[%emt 0:00:17]} Nf6 {[%emt 0:00:07]} 5. O-O {[%emt 0:00:14]} O-O {[%emt 0:00:06]} 6. b3 {[%emt 0:00:10]} b6 7. Bb2 Bb7 8. c4 e6 9. Nc3 Ne4 10. Rc1 Na6 11. Ne1 Qe7 12. e3 c5 13. d5 Rad8 14. Ba1 Bxc3 15. Bxe4 fxe4 16. d6 Qg5 17. Bxc3 Rde8 18. Qd2 Nb8 19. a3 Nc6 20. b4 Nd8 21. Ba1 Bc6 22. h4 Qf5 23. Qc3 e5 24. Rd1 Nf7 25. Kg2 Nh6 26. Qd2 Qh5 27. Qc1 g5 28. Rd2 gxh4 29. Rh1 Nf5 30. Kg1 Qg5 31. Ng2 hxg3 32. Qe1 Re6 33. Bc3 Rg6 34. Rh3 Qg4 35. Rh1 Qf3 0-1

[Event "Asian Nation Cup Open 2018"]
[Site "Hamedan"]
[Date "2018.07.28"]
[Round "1"]
[White "Noah, A  H  Al-Ali"]
[Black "Kostenko, Petr"]
[Result "0-1"]
[ECO "C44"]
[WhiteElo "2288"]
[BlackElo "2444"]
[Annotator "NA"]
[PlyCount "99"]
[EventDate "2018.07.27"]
[EventType "swiss"]
[EventCountry "IRI"]
[SourceTitle "playchess.com"]
[Source "ChessBase"]
[SourceQuality "1"]
[WhiteTeam "Iraq"]
[BlackTeam "Kazakhstan"]
[WhiteTeamCountry "IRQ"]
[BlackTeamCountry "KAZ"]
[TimeControl "40/5400+30:1800+30"]

1. e4 {[%emt 0:19:11]} e5 2. Nf3 {[%emt 0:02:52]} Nc6 {[%emt 0:00:34]} 3. d4 {[%emt 0:03:00]} exd4 {[%emt 0:00:37]} 4. Nxd4 {[%emt 0:00:06]} Bb4+ {[%emt 0:01:55]} 5. c3 {[%emt 0:10:11]} Be7 {[%emt 0:02:32]} 6. Nf5 {[%emt 0:11:38]} Bf6 {[%emt 0:01:04]} 7. Ng3 {[%emt 0:06:01]} g6 {[%emt 0:00:40]} 8. f4 {[%emt 0:02:27]} d6 {[%emt 0:00:10]} 9. Be3 {[%emt 0:01:47]} Bg7 {[%emt 0:02:51]} 10. Nd2 {[%emt 0:01:14]} Nf6 11. Bd3 Qe7 {[%emt 0:02:53]} 12. Qf3 {[%emt 0:05:12]} d5 13. O-O {[%emt 0:08:24]} Bg4 {[%emt 0:14:14]} 14. Qf2 {[%emt 0:00:03]} dxe4 {[%emt 0:00:11]} 15. Ndxe4 {[%emt 0:02:08]} O-O-O {[%emt 0:00:18]} 16. Bc5 {[%emt 0:01:47]} Qd7 17. Bc2 b6 {[%emt 0:10:00]} 18. h3 {[%emt 0:10:56]} Nxe4 {[%emt 0:01:25]} 19. Bxe4 {[%emt 0:01:18]} Be6 {[%emt 0:02:44]} 20. Qe2 {[%emt 0:01:47]} Na5 {[%emt 0:05:14]} 21. Rfd1 {[%emt 0:05:37]} Qe8 {[%emt 0:01:19]} 22. Bb4 {[%emt 0:00:05]} Rxd1+ {[%emt 0:09:57]} 23. Rxd1 {[%emt 0:00:02]} f5 {[%emt 0:01:23]} 24. Bf3 {[%emt 0:03:17]} Bc4 {[%emt 0:01:29]} 25. Qc2 Qe3+ {[%emt 0:16:52]} 26. Qf2 {[%emt 0:00:30]} Qxf2+ 27. Kxf2 Rd8 {[%emt 0:02:25]} 28. Bxa5 {[%emt 0:02:18]} Rxd1 29. Bxd1 bxa5 {[%emt 0:00:49]} 30. Bb3 {[%emt 0:00:07]} Bxb3 31. axb3 Kd7 {[%emt 0:00:53]} 32. Ke3 {[%emt 0:02:19]} Kc6 {[%emt 0:01:56]} 33. Kd3 {[%emt 0:00:53]} Bf8 {[%emt 0:02:25]} 34. Nf1 {[%emt 0:00:26]} Bd6 {[%emt 0:01:41]} 35. g3 {[%emt 0:00:04]} Bc5 {[%emt 0:00:15]} 36. g4 {[%emt 0:01:06]} fxg4 37. hxg4 Kd5 {[%emt 0:04:14]} 38. Ng3 {[%emt 0:01:08]} Bd6 {[%emt 0:01:20]} 39. c4+ {[%emt 0:00:28]} Ke6 {[%emt 0:00:20]} 40. Ke4 {[%emt 0:00:02]} Bf8 {[%emt 0:32:30]} 41. g5 {[%emt 0:31:18]} Bg7 {[%emt 0:00:17]} 42. Nf1 {[%emt 0:00:40]} Bxb2 43. Ne3 Kd6 {[%emt 0:02:09]} 44. Ng4 {[%emt 0:00:09]} Kc5 {[%emt 0:01:57]} 45. Kd3 {[%emt 0:01:17]} Bc1 {[%emt 0:00:35]} 46. Nf6 {[%emt 0:00:35]} Bxf4 {[%emt 0:00:43]} 47. Nxh7 {[%emt 0:00:02]} Kb4 {[%emt 0:01:52]} 48. Kc2 {[%emt 0:00:03]} a4 {[%emt 0:00:08]} 49. bxa4 {[%emt 0:00:03]} Kxc4 {[%emt 0:00:05]} 50. Nf8 {[%emt 0:00:12]} 0-1

[Event "Asian Nation Cup Open 2018"]
[Site "Hamedan"]
[Date "2018.07.28"]
[Round "1"]
[White "Al-Ali, Hussein Ali Hussein"]
[Black "Kazhgaleyev, Murtas"]
[Result "0-1"]
[ECO "C47"]
[WhiteElo "2267"]
[BlackElo "2575"]
[Annotator "ChessBase"]
[PlyCount "62"]
[EventDate "2018.07.27"]
[EventType "swiss"]
[EventCountry "IRI"]
[SourceTitle "playchess.com"]
[Source "ChessBase"]
[SourceQuality "1"]
[WhiteTeam "Iraq"]
[BlackTeam "Kazakhstan"]
[WhiteTeamCountry "IRQ"]
[BlackTeamCountry "KAZ"]
[TimeControl "40/5400+30:1800+30"]

1. e4 {[%emt 0:00:00]} e5 {[%emt 0:00:19]} 2. Nf3 {[%emt 0:00:00]} Nc6 {[%emt 0:00:03]} 3. Nc3 {[%emt 0:00:00]} Nf6 {[%emt 0:00:53]} 4. g3 d5 {[%emt 0:05:37]} 5. exd5 {[%emt 0:00:09]} Nxd5 {[%emt 0:00:04]} 6. Bg2 {[%emt 0:00:13]} Nf6 {[%emt 0:03:30]} 7. O-O {[%emt 0:00:22]} Bc5 {[%emt 0:03:02]} 8. d3 {[%emt 0:00:35]} h6 {[%emt 0:01:12]} 9. Be3 {[%emt 0:05:13]} Bxe3 {[%emt 0:04:08]} 10. fxe3 {[%emt 0:00:06]} Bg4 {[%emt 0:01:34]} 11. Qe1 {[%emt 0:01:52]} e4 {[%emt 0:06:39]} 12. dxe4 {[%emt 0:01:05]} O-O {[%emt 0:02:03]} 13. Rd1 {[%emt 0:06:43]} Nd7 {[%emt 0:05:29]} 14. Rd2 {[%emt 0:04:47]} Re8 {[%emt 0:07:14]} 15. h3 {[%emt 0:05:44]} Bxf3 {[%emt 0:03:12]} 16. Bxf3 Nce5 17. Bg2 c6 {[%emt 0:01:15]} 18. b3 {[%emt 0:02:13]} Qc7 {[%emt 0:02:29]} 19. a4 {[%emt 0:01:10]} Nc5 {[%emt 0:01:23]} 20. Qf2 {[%emt 0:02:56]} Qa5 {[%emt 0:02:15]} 21. Nb1 {[%emt 0:00:50]} Re7 {[%emt 0:01:57]} 22. Qf5 {[%emt 0:04:53]} Rae8 {[%emt 0:02:51]} 23. Rd4 {[%emt 0:09:31]} Ne6 24. c3 {[%emt 0:10:46]} Ng5 {[%emt 0:10:11]} 25. h4 {[%emt 0:02:25]} Ne6 {[%emt 0:03:03]} 26. Bh3 {[%emt 0:04:14]} Qc7 {[%emt 0:03:11]} 27. Bg2 {[%emt 0:08:48]} g6 {[%emt 0:08:43]} 28. Qf2 {[%emt 0:00:27]} Ng4 {[%emt 0:01:03]} 29. Qe1 {[%emt 0:00:15]} Nxd4 {[%emt 0:04:23]} 30. exd4 {[%emt 0:00:05]} f5 {[%emt 0:01:00]} 31. e5 {[%emt 0:02:40]} Qb6 {[%emt 0:00:19]} 0-1